fUST/lending_fUST_20260504
["ID","MTS","AMOUNT","RATE_DAILY","PERIOD"]
[421540596,1777839040000,-1262.69,0.00016438,2]
[421540598,1777839040000,-500.0,0.00016438,2]
[421540590,1777839040000,-290.86808743,0.00016438,2]
[421540709,1777839041000,-901.55,0.00016438,2]
[421540713,1777839041000,-500.0,0.00016438,2]
[421540712,1777839041000,-326.96717583,0.00016438,2]
[421540711,1777839041000,-1186.93,0.00016438,2]
[421540710,1777839041000,-500.0,0.00016438,2]
[421540700,1777839041000,-500.0,0.00016438,2]
[421540696,1777839041000,-555.66,0.00016438,2]
[421540702,1777839041000,-761.49,0.00016438,2]
[421540707,1777839041000,-500.0,0.00016438,2]
[421540704,1777839041000,-558.36,0.00016438,2]
[421540714,1777839041000,-748.88,0.00016438,2]
[421540708,1777839041000,-1000.0,0.00016438,2]
[421540717,1777839041000,-500.0,0.00016438,2]
[421540727,1777839041000,-500.0,0.00016438,2]
[421540715,1777839041000,-351.98782474,0.00016438,2]
[421540718,1777839041000,-2124.23,0.00016438,2]
[421540720,1777839041000,-1016.57,0.00016438,2]
[421540730,1777839041000,-5643.67,0.00016438,2]
[421540731,1777839041000,-554.27,0.00016438,2]
[421540722,1777839041000,-500.0,0.00016438,2]
[421540721,1777839041000,-500.0,0.00016438,2]
[421540719,1777839041000,-500.0,0.00016438,2]
[421540724,1777839041000,-567.36,0.00016438,2]
[421540723,1777839041000,-468.90798288,0.00016438,2]
[421540726,1777839041000,-500.0,0.00016438,2]
[421540728,1777839041000,-540.95,0.00016438,2]
[421540705,1777839041000,-500.0,0.00016438,2]
[421540716,1777839041000,-500.0,0.00016438,2]
[421540703,1777839041000,-3394.54,0.00016438,2]
[421540674,1777839041000,-500.0,0.00016438,2]
[421540698,1777839041000,-1256.86,0.00016438,2]
[421540682,1777839041000,-500.0,0.00016438,2]
[421540672,1777839041000,-1313.89,0.00016438,2]
[421540673,1777839041000,-936.25,0.00016438,2]
[421540729,1777839041000,-500.0,0.00016438,2]
[421540681,1777839041000,-695.24,0.00016438,2]
[421540675,1777839041000,-500.0,0.00016438,2]
[421540678,1777839041000,-500.0,0.00016438,2]
[421540676,1777839041000,-777.61,0.00016438,2]
[421540677,1777839041000,-500.0,0.00016438,2]
[421540679,1777839041000,-2121.29,0.00016438,2]
[421540680,1777839041000,-548.63,0.00016438,2]
[421540684,1777839041000,-1342.18,0.00016438,2]
[421540694,1777839041000,-500.0,0.00016438,2]
[421540683,1777839041000,-2804.91,0.00016438,2]
[421540685,1777839041000,-500.0,0.00016438,2]
[421540687,1777839041000,-500.0,0.00016438,2]
[421540691,1777839041000,-1923.02,0.00016438,2]
[421540693,1777839041000,-641.78,0.00016438,2]
[421540688,1777839041000,-2405.61,0.00016438,2]
[421540692,1777839041000,-1367.11,0.00016438,2]
[421540686,1777839041000,-207.18121185,0.00016438,2]
[421540689,1777839041000,-745.05,0.00016438,2]
[421540690,1777839041000,-500.0,0.00016438,2]
[421540695,1777839041000,-542.5071256,0.00016438,2]
[421540697,1777839041000,-1086.56,0.00016438,2]
[421540699,1777839041000,-500.0,0.00016438,2]
[421540701,1777839041000,-5650.93,0.00016438,2]
[421540706,1777839041000,-500.0,0.00016438,2]
[421540733,1777839041000,-698.42,0.00016438,2]
[421540725,1777839041000,-500.0,0.00016438,2]
[421540734,1777839041000,-500.0,0.00016438,2]
[421540760,1777839041000,-500.0,0.00016438,2]
[421540767,1777839041000,-500.0,0.00016438,2]
[421540764,1777839041000,-1130.22,0.00016438,2]
[421540768,1777839041000,-517.42,0.00016438,2]
[421540771,1777839041000,-856.73,0.00016438,2]
[421540781,1777839041000,-500.0,0.00016438,2]
[421540770,1777839041000,-500.0,0.00016438,2]
[421540772,1777839041000,-500.0,0.00016438,2]
[421540780,1777839041000,-500.0,0.00016438,2]
[421540773,1777839041000,-500.0,0.00016438,2]
[421540775,1777839041000,-500.0,0.00016438,2]
[421540777,1777839041000,-5714.47,0.00016438,2]
[421540776,1777839041000,-500.0,0.00016438,2]
[421540765,1777839041000,-3822.18,0.00016438,2]
[421540774,1777839041000,-1783.53,0.00016438,2]
[421540783,1777839041000,-500.0,0.00016438,2]
[421540782,1777839041000,-500.0,0.00016438,2]
[421540785,1777839041000,-500.0,0.00016438,2]
[421540784,1777839041000,-500.0,0.00016438,2]
[421540786,1777839041000,-15098.74,0.00016438,2]
[421540788,1777839041000,-555.33,0.00016438,2]
[421540793,1777839041000,-636.91,0.00016438,2]
[421540789,1777839041000,-500.0,0.00016438,2]
[421540787,1777839041000,-2782.12,0.00016438,2]
[421540791,1777839041000,-500.0,0.00016438,2]
[421540790,1777839041000,-5657.48,0.00016438,2]
[421540792,1777839041000,-2871.71,0.00016438,2]
[421540743,1777839041000,-500.0,0.00016438,2]
[421540778,1777839041000,-500.0,0.00016438,2]
[421540762,1777839041000,-528.11,0.00016438,2]
[421540779,1777839041000,-500.0,0.00016438,2]
[421540763,1777839041000,-500.0,0.00016438,2]
[421540761,1777839041000,-500.0,0.00016438,2]
[421540738,1777839041000,-785.19,0.00016438,2]
[421540736,1777839041000,-513.16,0.00016438,2]
[421540744,1777839041000,-2139.64,0.00016438,2]
[421540732,1777839041000,-532.25,0.00016438,2]
[421540737,1777839041000,-500.0,0.00016438,2]
[421540739,1777839041000,-776.54,0.00016438,2]
[421540742,1777839041000,-500.0,0.00016438,2]
[421540740,1777839041000,-500.0,0.00016438,2]
[421540741,1777839041000,-500.0,0.00016438,2]
[421540755,1777839041000,-1241.69,0.00016438,2]
[421540745,1777839041000,-10928.45,0.00016438,2]
[421540756,1777839041000,-500.0,0.00016438,2]
[421540754,1777839041000,-457.31148463,0.00016438,2]
[421540735,1777839041000,-500.0,0.00016438,2]
[421540766,1777839041000,-500.0,0.00016438,2]
[421540748,1777839041000,-1812.59,0.00016438,2]
[421540758,1777839041000,-3296.93,0.00016438,2]
[421540769,1777839041000,-4449.36,0.00016438,2]
[421540759,1777839041000,-500.0,0.00016438,2]
[421540753,1777839041000,-500.0,0.00016438,2]
[421540750,1777839041000,-3010.33,0.00016438,2]
[421540752,1777839041000,-500.0,0.00016438,2]
[421540747,1777839041000,-500.0,0.00016438,2]
[421540749,1777839041000,-2185.3,0.00016438,2]
[421540746,1777839041000,-500.0,0.00016438,2]
[421540751,1777839041000,-500.0,0.00016438,2]
[421540757,1777839041000,-972.8,0.00016438,2]
[421540849,1777839042000,-500.0,0.00016438,2]
[421540841,1777839042000,-890.99,0.00016438,2]
[421540850,1777839042000,-500.0,0.00016438,2]
[421540840,1777839042000,-500.0,0.00016438,2]
[421540842,1777839042000,-500.0,0.00016438,2]
[421540835,1777839042000,-500.0,0.00016438,2]
[421540829,1777839042000,-500.0,0.00016438,2]
[421540827,1777839042000,-914.91,0.00016438,2]
[421540826,1777839042000,-500.0,0.00016438,2]
[421540831,1777839042000,-500.0,0.00016438,2]
[421540839,1777839042000,-500.0,0.00016438,2]
[421540836,1777839042000,-500.0,0.00016438,2]
[421540838,1777839042000,-500.0,0.00016438,2]
[421540851,1777839042000,-990.59,0.00016438,2]
[421540866,1777839042000,-2400.7,0.00016438,2]
[421540852,1777839042000,-819.99,0.00016438,2]
[421540845,1777839042000,-1177.29,0.00016438,2]
[421540847,1777839042000,-807.09,0.00016438,2]
[421540848,1777839042000,-500.0,0.00016438,2]
[421540854,1777839042000,-1020.37,0.00016438,2]
[421540853,1777839042000,-9748.36,0.00016438,2]
[421540855,1777839042000,-500.0,0.00016438,2]
[421540868,1777839042000,-500.0,0.00016438,2]
[421540856,1777839042000,-538.46,0.00016438,2]
[421540865,1777839042000,-761.27,0.00016438,2]
[421540870,1777839042000,-5413.33,0.00016438,2]
[421540857,1777839042000,-500.0,0.00016438,2]
[421540872,1777839042000,-500.0,0.00016438,2]
[421540843,1777839042000,-1187.63,0.00016438,2]
[421540834,1777839042000,-580.29,0.00016438,2]
[421540794,1777839042000,-500.0,0.00016438,2]
[421540832,1777839042000,-5368.54,0.00016438,2]
[421540863,1777839042000,-1573.38,0.00016438,2]
[421540798,1777839042000,-532.7,0.00016438,2]
[421540797,1777839042000,-353.97394044,0.00016438,2]
[421540796,1777839042000,-661.9,0.00016438,2]
[421540805,1777839042000,-508.75,0.00016438,2]
[421540799,1777839042000,-13200.89,0.00016438,2]
[421540800,1777839042000,-500.0,0.00016438,2]
[421540806,1777839042000,-989.21,0.00016438,2]
[421540795,1777839042000,-500.0,0.00016438,2]
[421540803,1777839042000,-500.0,0.00016438,2]
[421540802,1777839042000,-4554.17,0.00016438,2]
[421540801,1777839042000,-500.0,0.00016438,2]
[421540804,1777839042000,-500.0,0.00016438,2]
[421540807,1777839042000,-558.67,0.00016438,2]
[421540810,1777839042000,-9680.58,0.00016438,2]
[421540809,1777839042000,-544.71,0.00016438,2]
[421540812,1777839042000,-500.0,0.00016438,2]
[421540819,1777839042000,-500.0,0.00016438,2]
[421540811,1777839042000,-818.33,0.00016438,2]
[421540808,1777839042000,-500.0,0.00016438,2]
[421540815,1777839042000,-500.0,0.00016438,2]
[421540814,1777839042000,-500.0,0.00016438,2]
[421540817,1777839042000,-500.0,0.00016438,2]
[421540816,1777839042000,-500.0,0.00016438,2]
[421540813,1777839042000,-500.0,0.00016438,2]
[421540820,1777839042000,-4435.08,0.00016438,2]
[421540822,1777839042000,-878.28,0.00016438,2]
[421540833,1777839042000,-4989.72,0.00016438,2]
[421540824,1777839042000,-355.06605211,0.00016438,2]
[421540837,1777839042000,-500.0,0.00016438,2]
[421540858,1777839042000,-3411.81,0.00016438,2]
[421540932,1777839042000,-3246.61,0.00016438,2]
[421540859,1777839042000,-4057.01,0.00016438,2]
[421540902,1777839042000,-2743.69,0.00016438,2]
[421540906,1777839042000,-500.0,0.00016438,2]
[421540909,1777839042000,-838.36,0.00016438,2]
[421540904,1777839042000,-9316.79,0.00016438,2]
[421540903,1777839042000,-500.0,0.00016438,2]
[421540905,1777839042000,-500.0,0.00016438,2]
[421540907,1777839042000,-6211.22,0.00016438,2]
[421540917,1777839042000,-500.0,0.00016438,2]
[421540925,1777839042000,-500.0,0.00016438,2]
[421540923,1777839042000,-463.16297167,0.00016438,2]
[421540916,1777839042000,-500.0,0.00016438,2]
[421540924,1777839042000,-878.2,0.00016438,2]
[421540928,1777839042000,-67032.1,0.00016438,2]
[421540926,1777839042000,-500.0,0.00016438,2]
[421540922,1777839042000,-966.51,0.00016438,2]
[421540927,1777839042000,-500.0,0.00016438,2]
[421540918,1777839042000,-500.0,0.00016438,2]
[421540919,1777839042000,-838.25,0.00016438,2]
[421540920,1777839042000,-500.0,0.00016438,2]
[421540921,1777839042000,-500.0,0.00016438,2]
[421540930,1777839042000,-1000.0,0.00016438,2]
[421540929,1777839042000,-500.0,0.00016438,2]
[421540931,1777839042000,-7173.89,0.00016438,2]
[421540934,1777839042000,-7430.77,0.00016438,2]
[421540935,1777839042000,-13026.11,0.00016438,2]
[421540938,1777839042000,-639.66,0.00016438,2]
[421540861,1777839042000,-500.0,0.00016438,2]
[421540933,1777839042000,-500.0,0.00016438,2]
[421540936,1777839042000,-500.0,0.00016438,2]
[421540911,1777839042000,-500.0,0.00016438,2]
[421540915,1777839042000,-500.0,0.00016438,2]
[421540937,1777839042000,-1019.64,0.00016438,2]
[421540914,1777839042000,-412.78387228,0.00016438,2]
[421540913,1777839042000,-423.91669659,0.00016438,2]
[421540875,1777839042000,-500.0,0.00016438,2]
[421540873,1777839042000,-1498.14,0.00016438,2]
[421540876,1777839042000,-4595.66,0.00016438,2]
[421540880,1777839042000,-4324.56,0.00016438,2]
[421540881,1777839042000,-1826.85,0.00016438,2]
[421540884,1777839042000,-1307.11,0.00016438,2]
[421540879,1777839042000,-500.0,0.00016438,2]
[421540885,1777839042000,-5846.63,0.00016438,2]
[421540878,1777839042000,-779.15,0.00016438,2]
[421540874,1777839042000,-500.0,0.00016438,2]
[421540883,1777839042000,-500.0,0.00016438,2]
[421540882,1777839042000,-4268.63,0.00016438,2]
[421540886,1777839042000,-500.0,0.00016438,2]
[421540877,1777839042000,-1443.86,0.00016438,2]
[421540891,1777839042000,-3924.92,0.00016438,2]
[421540901,1777839042000,-500.0,0.00016438,2]
[421540900,1777839042000,-2986.09,0.00016438,2]
[421540897,1777839042000,-989.64,0.00016438,2]
[421540898,1777839042000,-500.0,0.00016438,2]
[421540899,1777839042000,-500.0,0.00016438,2]
[421540889,1777839042000,-500.0,0.00016438,2]
[421540895,1777839042000,-500.0,0.00016438,2]
[421540894,1777839042000,-13052.1,0.00016438,2]
[421540888,1777839042000,-4600.05,0.00016438,2]
[421540896,1777839042000,-500.0,0.00016438,2]
[421540893,1777839042000,-500.0,0.00016438,2]
[421540892,1777839042000,-1098.18,0.00016438,2]
[421540890,1777839042000,-500.0,0.00016438,2]
[421540887,1777839042000,-917.4,0.00016438,2]
[421540979,1777839043000,-2848.508947,0.00016438,2]
[421540980,1777839043000,-151.0,0.00016438,2]
[421540981,1777839043000,-151.0,0.00016438,2]
[421540982,1777839043000,-151.0,0.00016438,2]
[421540978,1777839043000,-5000.0,0.00016438,2]
[421540975,1777839043000,-151.0,0.00016438,2]
[421540974,1777839043000,-151.0,0.00016438,2]
[421540972,1777839043000,-151.0,0.00016438,2]
[421540971,1777839043000,-151.0,0.00016438,2]
[421540969,1777839043000,-151.0,0.00016438,2]
[421540968,1777839043000,-151.0,0.00016438,2]
[421540976,1777839043000,-238.5,0.00016438,2]
[421540984,1777839043000,-151.0,0.00016438,2]
[421540989,1777839043000,-155.0,0.00016642,2]
[421540986,1777839043000,-171.42,0.00016493,2]
[421540988,1777839043000,-1519.85756867,0.000166,2]
[421540987,1777839043000,-155.0,0.0001654,2]
[421540992,1777839043000,-1086.113385,0.00016646,7]
[421540991,1777839043000,-160.0,0.00016646,7]
[421540994,1777839043000,-2012.22677,0.00016646,7]
[421540983,1777839043000,-270.71571676,0.00016438,2]
[421540999,1777839043000,-1731.685788,0.00016646,2]
[421540996,1777839043000,-160.0,0.00016646,2]
[421540998,1777839043000,-945.842894,0.00016646,2]
[421541000,1777839043000,-160.0,0.00016646,7]
[421540970,1777839043000,-151.0,0.00016438,2]
[421541003,1777839043000,-163.337792,0.00016646,7]
[421540985,1777839043000,-151.0,0.00016438,2]
[421540973,1777839043000,-151.0,0.00016438,2]
[421540946,1777839043000,-626.81,0.00016438,2]
[421540967,1777839043000,-151.0,0.00016438,2]
[421541002,1777839043000,-2573.898427,0.00016646,7]
[421540940,1777839043000,-695.14,0.00016438,2]
[421540941,1777839043000,-500.0,0.00016438,2]
[421540939,1777839043000,-3260.12,0.00016438,2]
[421540943,1777839043000,-500.0,0.00016438,2]
[421540953,1777839043000,-500.0,0.00016438,2]
[421540948,1777839043000,-2822.68,0.00016438,2]
[421540942,1777839043000,-16233.24,0.00016438,2]
[421540950,1777839043000,-500.0,0.00016438,2]
[421540949,1777839043000,-771.34,0.00016438,2]
[421540952,1777839043000,-502.57,0.00016438,2]
[421540945,1777839043000,-2775.66,0.00016438,2]
[421540944,1777839043000,-500.0,0.00016438,2]
[421540947,1777839043000,-1353.59,0.00016438,2]
[421540951,1777839043000,-500.0,0.00016438,2]
[421540955,1777839043000,-2211.94,0.00016438,2]
[421540954,1777839043000,-547.65251542,0.00016438,2]
[421540956,1777839043000,-500.0,0.00016438,2]
[421540965,1777839043000,-151.0,0.00016438,2]
[421540957,1777839043000,-6954.53,0.00016438,2]
[421540958,1777839043000,-512.31,0.00016438,2]
[421540959,1777839043000,-15257.22,0.00016438,2]
[421540962,1777839043000,-151.0,0.00016438,2]
[421540963,1777839043000,-151.0,0.00016438,2]
[421540961,1777839043000,-500.0,0.00016438,2]
[421540960,1777839043000,-500.0,0.00016438,2]
[421540964,1777839043000,-151.0,0.00016438,2]
[421540977,1777839043000,-5000.0,0.00016438,2]
[421541004,1777839043000,-160.0,0.00016646,2]
[421540966,1777839043000,-151.0,0.00016438,2]
[421541008,1777839043000,-7811.2393,0.00016712,2]
[421541035,1777839043000,-500.0,0.00016712,2]
[421541037,1777839043000,-500.0,0.00016712,2]
[421541034,1777839043000,-500.0,0.00016712,2]
[421541036,1777839043000,-500.0,0.00016712,2]
[421541029,1777839043000,-1875.22,0.00016712,2]
[421541039,1777839043000,-939.33,0.00016712,2]
[421541043,1777839043000,-500.0,0.00016712,2]
[421541044,1777839043000,-500.0,0.00016712,2]
[421541052,1777839043000,-500.0,0.00016712,2]
[421541045,1777839043000,-500.0,0.00016712,2]
[421541046,1777839043000,-568.81,0.00016712,2]
[421541054,1777839043000,-500.0,0.00016712,2]
[421541056,1777839043000,-500.0,0.00016712,2]
[421541065,1777839043000,-500.0,0.00016712,2]
[421541053,1777839043000,-500.0,0.00016712,2]
[421541047,1777839043000,-901.45,0.00016712,2]
[421541051,1777839043000,-199.5442862,0.00016712,2]
[421541048,1777839043000,-690.11,0.00016712,2]
[421541049,1777839043000,-307.56689904,0.00016712,2]
[421541050,1777839043000,-1334.15,0.00016712,2]
[421541057,1777839043000,-500.0,0.00016712,2]
[421541062,1777839043000,-500.0,0.00016712,2]
[421541059,1777839043000,-830.1,0.00016712,2]
[421541061,1777839043000,-596.66,0.00016712,2]
[421541063,1777839043000,-593.14,0.00016712,2]
[421541060,1777839043000,-500.0,0.00016712,2]
[421541064,1777839043000,-500.0,0.00016712,2]
[421541005,1777839043000,-999.691371,0.00016646,2]
[421541055,1777839043000,-649.65,0.00016712,2]
[421541032,1777839043000,-502.35,0.00016712,2]
[421541058,1777839043000,-500.0,0.00016712,2]
[421541033,1777839043000,-500.0,0.00016712,2]
[421541042,1777839043000,-700.28,0.00016712,2]
[421541006,1777839043000,-1839.382743,0.00016646,2]
[421541001,1777839043000,-1366.949213,0.00016646,7]
[421541010,1777839043000,-500.0,0.00016712,2]
[421541012,1777839043000,-500.0,0.00016712,2]
[421541007,1777839043000,-352.41074546,0.0001666,2]
[421541011,1777839043000,-500.0,0.00016712,2]
[421541013,1777839043000,-500.0,0.00016712,2]
[421541015,1777839043000,-500.0,0.00016712,2]
[421541025,1777839043000,-500.0,0.00016712,2]
[421541026,1777839043000,-500.0,0.00016712,2]
[421541027,1777839043000,-501.45172283,0.00016712,2]
[421541017,1777839043000,-612.97,0.00016712,2]
[421541016,1777839043000,-1102.72,0.00016712,2]
[421541009,1777839043000,-500.0,0.00016712,2]
[421541019,1777839043000,-500.0,0.00016712,2]
[421541014,1777839043000,-1356.45,0.00016712,2]
[421541038,1777839043000,-500.0,0.00016712,2]
[421541041,1777839043000,-515.79,0.00016712,2]
[421541031,1777839043000,-216.84525171,0.00016712,2]
[421541030,1777839043000,-500.0,0.00016712,2]
[421541028,1777839043000,-801.59,0.00016712,2]
[421541040,1777839043000,-500.0,0.00016712,2]
[421541018,1777839043000,-500.0,0.00016712,2]
[421541024,1777839043000,-500.0,0.00016712,2]
[421541020,1777839043000,-533.63,0.00016712,2]
[421541021,1777839043000,-500.0,0.00016712,2]
[421541022,1777839043000,-931.32,0.00016712,2]
[421541023,1777839043000,-793.62,0.00016712,2]
[421541100,1777839044000,-513.61595632,0.00016712,2]
[421541102,1777839044000,-500.0,0.00016712,2]
[421541104,1777839044000,-500.0,0.00016712,2]
[421541099,1777839044000,-500.0,0.00016712,2]
[421541106,1777839044000,-500.0,0.00016712,2]
[421541105,1777839044000,-959.7,0.00016712,2]
[421541108,1777839044000,-611.92,0.00016712,2]
[421541097,1777839044000,-1376.4,0.00016712,2]
[421541101,1777839044000,-366.56359311,0.00016712,2]
[421541107,1777839044000,-500.0,0.00016712,2]
[421541098,1777839044000,-500.0,0.00016712,2]
[421541095,1777839044000,-500.0,0.00016712,2]
[421541114,1777839044000,-500.0,0.00016712,2]
[421541110,1777839044000,-500.0,0.00016712,2]
[421541120,1777839044000,-500.0,0.00016712,2]
[421541122,1777839044000,-500.0,0.00016712,2]
[421541109,1777839044000,-500.0,0.00016712,2]
[421541113,1777839044000,-1196.88,0.00016712,2]
[421541115,1777839044000,-500.0,0.00016712,2]
[421541121,1777839044000,-500.0,0.00016712,2]
[421541118,1777839044000,-610.07,0.00016712,2]
[421541112,1777839044000,-500.0,0.00016712,2]
[421541116,1777839044000,-1307.57,0.00016712,2]
[421541117,1777839044000,-2014.93,0.00016712,2]
[421541096,1777839044000,-556.3,0.00016712,2]
[421541119,1777839044000,-500.0,0.00016712,2]
[421541103,1777839044000,-2417.46,0.00016712,2]
[421541094,1777839044000,-543.86,0.00016712,2]
[421541076,1777839044000,-608.65,0.00016712,2]
[421541093,1777839044000,-500.0,0.00016712,2]
[421541111,1777839044000,-823.8,0.00016712,2]
[421541069,1777839044000,-500.0,0.00016712,2]
[421541066,1777839044000,-500.0,0.00016712,2]
[421541067,1777839044000,-500.0,0.00016712,2]
[421541068,1777839044000,-500.0,0.00016712,2]
[421541071,1777839044000,-500.0,0.00016712,2]
[421541070,1777839044000,-866.23,0.00016712,2]
[421541081,1777839044000,-500.0,0.00016712,2]
[421541080,1777839044000,-500.0,0.00016712,2]
[421541072,1777839044000,-1381.69,0.00016712,2]
[421541079,1777839044000,-500.0,0.00016712,2]
[421541077,1777839044000,-500.0,0.00016712,2]
[421541083,1777839044000,-500.0,0.00016712,2]
[421541074,1777839044000,-812.37,0.00016712,2]
[421541078,1777839044000,-530.55,0.00016712,2]
[421541073,1777839044000,-959.88,0.00016712,2]
[421541082,1777839044000,-500.0,0.00016712,2]
[421541084,1777839044000,-411.99209911,0.00016712,2]
[421541088,1777839044000,-500.0,0.00016712,2]
[421541087,1777839044000,-500.0,0.00016712,2]
[421541086,1777839044000,-1086.24,0.00016712,2]
[421541085,1777839044000,-500.0,0.00016712,2]
[421541089,1777839044000,-500.0,0.00016712,2]
[421541091,1777839044000,-838.67,0.00016712,2]
[421541090,1777839044000,-577.84,0.00016712,2]
[421541092,1777839044000,-500.0,0.00016712,2]
[421541075,1777839044000,-500.0,0.00016712,2]
[421541134,1777839044000,-568.22,0.00016712,2]
[421541124,1777839044000,-1262.69,0.00016712,2]
[421541169,1777839044000,-500.0,0.00016712,2]
[421541154,1777839044000,-500.0,0.00016712,2]
[421541155,1777839044000,-500.0,0.00016712,2]
[421541156,1777839044000,-500.0,0.00016712,2]
[421541160,1777839044000,-500.0,0.00016712,2]
[421541158,1777839044000,-5640.05,0.00016712,2]
[421541157,1777839044000,-842.33,0.00016712,2]
[421541164,1777839044000,-626.8766393,0.00016712,2]
[421541165,1777839044000,-1581.85,0.00016712,2]
[421541166,1777839044000,-1044.42,0.00016712,2]
[421541167,1777839044000,-525.1,0.00016712,2]
[421541168,1777839044000,-507.14,0.00016712,2]
[421541172,1777839044000,-986.32,0.00016712,2]
[421541163,1777839044000,-1156.09,0.00016712,2]
[421541170,1777839044000,-1101.25,0.00016712,2]
[421541171,1777839044000,-500.0,0.00016712,2]
[421541174,1777839044000,-500.01029632,0.00016712,2]
[421541173,1777839044000,-506.68,0.00016712,2]
[421541176,1777839044000,-500.0,0.00016712,2]
[421541178,1777839044000,-572.58,0.00016712,2]
[421541179,1777839044000,-579.52,0.00016712,2]
[421541181,1777839044000,-664.02,0.00016712,2]
[421541177,1777839044000,-829.95,0.00016712,2]
[421541182,1777839044000,-500.0,0.00016712,2]
[421541180,1777839044000,-5627.36,0.00016712,2]
[421541183,1777839044000,-500.0,0.00016712,2]
[421541136,1777839044000,-569.89,0.00016712,2]
[421541175,1777839044000,-1918.63,0.00016712,2]
[421541152,1777839044000,-227.55585596,0.00016712,2]
[421541159,1777839044000,-1373.25,0.00016712,2]
[421541153,1777839044000,-500.0,0.00016712,2]
[421541135,1777839044000,-365.91344144,0.00016712,2]
[421541125,1777839044000,-500.0,0.00016712,2]
[421541127,1777839044000,-500.0,0.00016712,2]
[421541126,1777839044000,-500.0,0.00016712,2]
[421541123,1777839044000,-500.0,0.00016712,2]
[421541130,1777839044000,-500.0,0.00016712,2]
[421541128,1777839044000,-747.65,0.00016712,2]
[421541129,1777839044000,-769.86,0.00016712,2]
[421541131,1777839044000,-500.0,0.00016712,2]
[421541150,1777839044000,-500.0,0.00016712,2]
[421541133,1777839044000,-3125.32,0.00016712,2]
[421541137,1777839044000,-500.0,0.00016712,2]
[421541138,1777839044000,-500.0,0.00016712,2]
[421541139,1777839044000,-3803.99,0.00016712,2]
[421541132,1777839044000,-500.0,0.00016712,2]
[421541162,1777839044000,-500.0,0.00016712,2]
[421541161,1777839044000,-556.78,0.00016712,2]
[421541149,1777839044000,-500.0,0.00016712,2]
[421541151,1777839044000,-500.0,0.00016712,2]
[421541146,1777839044000,-651.94,0.00016712,2]
[421541147,1777839044000,-500.0,0.00016712,2]
[421541145,1777839044000,-500.0,0.00016712,2]
[421541143,1777839044000,-500.0,0.00016712,2]
[421541148,1777839044000,-500.0,0.00016712,2]
[421541142,1777839044000,-500.0,0.00016712,2]
[421541141,1777839044000,-581.49,0.00016712,2]
[421541140,1777839044000,-500.0,0.00016712,2]
[421541144,1777839044000,-671.01,0.00016712,2]
[421541222,1777839045000,-761.49,0.00016712,2]
[421541229,1777839045000,-901.55,0.00016712,2]
[421541224,1777839045000,-558.36,0.00016712,2]
[421541225,1777839045000,-500.0,0.00016712,2]
[421541221,1777839045000,-5650.93,0.00016712,2]
[421541215,1777839045000,-555.66,0.00016712,2]